bitfinex/quotes_ETHUSD_20220308
["timestamp","ask_amount","ask_price","bid_price","bid_amount"]
[1646770544074,0.52942538,2580.9,2580.8,0.8558]
[1646770544273,0.52942538,2580.9,2580.8,12.9558]
[1646770544671,0.52942538,2580.9,2580.8,1.768]
[1646770544872,0.52942538,2580.9,2580.8,0.468]
[1646770545071,0.52942538,2580.9,2580.7,3.82731224]
[1646770545272,0.52942538,2580.9,2580.7,2.09144145]
[1646770545472,1.95106721,2580.9,2580.7,0.30338145]
[1646770545877,0.52942538,2580.8,2580.7,0.00338145]
[1646770546126,0.52942538,2580.8,2580.7,0.00675669]
[1646770546326,0.52942538,2580.8,2580.7,0.00337524]
[1646770547226,0.52942538,2580.8,2580.6,0.02336909]
[1646770547925,0.52942538,2580.8,2580.7,0.85742023]
[1646770548126,0.52942538,2580.8,2580.7,13.04522023]
[1646770548331,0.52942538,2580.8,2580.7,14.04522023]
[1646770548631,0.52942538,2580.8,2580.7,14.51322023]
[1646770549428,3.0,2581.4,2580.9,12.1878]
[1646770549633,1.95106721,2582.4,2581.1,12.1878]
[1646770549868,1.95106721,2582.4,2581.6,12.1878]
[1646770550270,0.3,2583.0,2582.1,0.3]
[1646770550467,4.1369,2583.2,2582.7,0.72824058]
[1646770550468,3.10186721,2583.2,2582.7,0.72824058]
[1646770550668,1.95106721,2583.2,2582.2,0.468]
[1646770550871,1.95106721,2583.2,2582.7,0.3]
[1646770551274,1.95106721,2583.2,2582.4,0.468]
[1646770551473,3.8878,2583.6,2582.4,0.768]
[1646770551673,1.95106721,2582.8,2582.4,0.768]
[1646770552072,1.95106721,2582.8,2582.4,0.78048074]
[1646770552471,1.95106721,2582.8,2582.4,1.63750097]
[1646770553173,1.95106721,2582.8,2582.5,0.00313974]
[1646770554419,1.95106721,2582.8,2582.5,0.00655738]
[1646770554620,1.95106721,2582.8,2582.5,0.00341764]
[1646770555220,0.03138263,2583.2,2582.5,0.00341764]
[1646770555421,1.95106721,2582.6,2582.5,0.00341764]
[1646770555622,1.95106721,2582.6,2582.2,0.0097216]
[1646770555823,0.41918263,2583.2,2582.2,0.0097216]
[1646770555824,5.15208263,2583.2,2582.2,0.0097216]
[1646770556022,5.15208263,2583.2,2582.2,0.73248602]
[1646770556023,1.65208263,2583.2,2582.2,0.73248602]
[1646770556431,1.95106721,2582.3,2582.2,0.73248602]
[1646770556627,1.95106721,2582.3,2582.2,1.03248602]
[1646770556829,1.95106721,2582.3,2582.2,1.04606512]
[1646770557127,5.15208263,2583.2,2582.2,1.04606512]
[1646770557363,1.65208263,2583.2,2582.2,1.04606512]
[1646770557566,1.95106721,2582.3,2582.2,1.04606512]
[1646770558267,1.26428263,2583.2,2582.6,0.00353829]
[1646770558466,1.95106721,2582.7,2582.6,0.00353829]
[1646770559467,1.95106721,2582.7,2582.4,0.01415473]
[1646770559468,2.60734497,2582.7,2582.4,0.01415473]
[1646770559666,0.65627776,2582.7,2582.4,0.01415473]
[1646770560266,1.95106721,2582.5,2582.4,0.01415473]
[1646770560469,2.33886721,2582.5,2581.4,7.36]
[1646770560667,1.95106721,2581.7,2581.4,7.36]
[1646770560868,4.325,2582.5,2581.4,7.36]
[1646770561127,1.95106721,2581.5,2581.4,7.36]
[1646770562828,1.95106721,2581.5,2580.8,7.36]
[1646770563031,1.95106721,2580.9,2580.8,7.36]
[1646770563228,1.95106721,2580.9,2580.6,0.02]
[1646770563427,0.3,2581.0,2580.6,0.02]
[1646770563728,1.95106721,2580.7,2580.6,0.02]
[1646770563928,5.0,2580.6,2579.9,0.3872]
[1646770564132,1.95106721,2580.7,2579.9,0.3872]
[1646770564133,1.95106721,2580.0,2579.9,0.3872]
[1646770564331,0.25969705,2580.0,2579.9,0.3872]
[1646770564966,0.25969705,2580.0,2579.1,0.00138739]
[1646770564967,1.17250049,2580.0,2579.1,0.00138739]
[1646770565166,1.17250049,2580.0,2579.1,1.58571515]
[1646770565167,0.25969705,2579.2,2579.1,1.58571515]
[1646770565666,0.25969705,2579.2,2578.6,2.27741388]
[1646770565866,0.25969705,2578.7,2578.6,2.27741388]
[1646770566670,0.25969705,2578.7,2578.6,2.27530137]
[1646770567075,0.25969705,2578.7,2578.6,1.58360264]
[1646770567272,2.5,2578.5,2578.4,0.01487527]
[1646770567473,3.55778675,2578.5,2578.4,0.01487527]
[1646770567673,1.05778675,2578.5,2578.4,0.01487527]
[1646770568074,1.05778675,2578.5,2577.8,0.00138739]
[1646770568275,1.05778675,2578.5,2577.5,7.36138739]
[1646770568276,0.25969705,2577.9,2577.5,7.36138739]
[1646770568526,0.25969705,2577.6,2577.5,7.36]
[1646770569721,0.3874,2578.8,2577.5,7.36]
[1646770569922,0.6,2579.0,2577.6,3.50138739]
[1646770570121,0.6,2579.0,2577.7,0.00138739]
[1646770570323,0.25969705,2578.3,2577.7,0.00138739]
[1646770570525,0.25969705,2578.3,2577.6,1.3]
[1646770570821,0.25969705,2578.3,2577.5,8.96]
[1646770571122,0.25969705,2578.3,2577.5,8.66]
[1646770571523,0.25969705,2578.3,2577.8,0.00333603]
[1646770572127,0.25969705,2578.3,2577.8,0.97336603]
[1646770572381,0.25969705,2578.3,2577.8,2.18589211]
[1646770572579,0.25969705,2578.3,2577.9,4.19119113]
[1646770572780,2.3458,2579.2,2577.9,5.27139113]
[1646770572979,0.25969705,2578.9,2578.0,7.36]
[1646770573181,0.25969705,2578.9,2578.1,3.968]
[1646770573381,0.25969705,2578.9,2578.5,0.91504184]
[1646770573579,0.25969705,2578.9,2578.5,1.38304184]
[1646770573779,0.25969705,2578.9,2578.5,1.68304184]
[1646770574180,0.25969705,2578.9,2578.5,0.768]
[1646770574382,0.25969705,2578.7,2578.5,0.3]
[1646770574582,0.25969705,2578.7,2578.5,0.6]
[1646770574785,0.25969705,2578.7,2578.5,0.3]
[1646770575081,0.25969705,2578.7,2578.3,0.30339087]
[1646770575286,0.25969705,2578.7,2578.6,0.00339071]
[1646770576025,0.25969705,2578.9,2578.6,0.00339071]
[1646770576417,0.25969705,2578.9,2578.5,0.0033178]
[1646770576621,0.25969705,2579.2,2578.7,0.80189872]
[1646770576819,0.25969705,2579.2,2578.8,3.5]
[1646770577021,0.25969705,2579.2,2578.7,1.10189872]
[1646770577223,0.25969705,2579.2,2578.8,0.468]
[1646770577720,1.2052,2579.4,2578.8,0.77133372]
[1646770577921,1.2052,2579.4,2578.8,0.30333372]
[1646770578122,1.2052,2579.4,2578.8,0.00333372]
[1646770578620,0.25969705,2579.0,2578.8,0.00333372]
[1646770579022,0.25969705,2579.0,2578.6,0.01333647]
[1646770579222,1.2052,2579.4,2578.6,0.05744002]
[1646770579421,0.25969705,2579.0,2578.6,0.05744002]
[1646770579622,0.25969705,2579.0,2578.6,0.35744002]
[1646770580068,0.25969705,2579.0,2578.7,0.00335238]
[1646770580868,0.25969705,2579.2,2578.8,0.96966]
[1646770581070,0.25969705,2579.4,2578.9,11.82980482]
[1646770581271,0.25969705,2579.4,2578.9,13.29780482]
[1646770581670,0.25969705,2579.4,2579.0,0.79430227]
[1646770581873,0.25969705,2579.1,2578.9,0.02980482]
[1646770582472,0.25969705,2579.1,2579.0,0.00335308]
[1646770583719,0.25969705,2579.1,2578.9,0.00335097]
[1646770583919,1.2698567,2580.0,2578.9,0.97297097]
[1646770583920,0.25969705,2579.3,2578.9,0.97297097]
[1646770584319,1.35723,2580.4,2579.6,0.29569188]
[1646770584519,0.10839514,2580.1,2579.6,0.29569188]
[1646770585324,1.07811514,2580.1,2579.6,0.29569188]
[1646770586019,0.71438573,2579.9,2579.6,0.29569188]
[1646770586422,1.68420573,2579.9,2579.6,0.29569188]
[1646770586624,3.5,2579.8,2579.6,0.29569188]
[1646770586822,5.5,2579.7,2578.9,0.02356979]
[1646770587023,3.5,2579.6,2578.9,0.0221824]
[1646770587468,0.71299107,2579.1,2578.9,0.0221824]
[1646770587668,0.96998,2579.5,2578.9,0.0221824]
[1646770587871,4.4026,2579.8,2578.9,0.0221824]
[1646770588067,0.9026,2579.8,2578.9,0.0221824]
[1646770588468,0.9026,2579.8,2578.9,0.02582893]
[1646770589274,0.89612042,2579.6,2578.9,0.02582893]
[1646770589473,0.89612042,2579.6,2578.9,0.00364653]
[1646770589672,0.89612042,2579.6,2579.2,0.00364625]
[1646770590676,0.89612042,2579.6,2579.3,0.00363002]
[1646770591026,0.9026,2579.8,2579.3,0.00363002]
[1646770592026,0.9026,2579.8,2579.4,0.0036299]
[1646770593226,0.9026,2579.8,2579.5,0.00332008]
[1646770594029,0.9026,2579.8,2579.5,0.05463845]
[1646770594030,4.4026,2579.8,2579.5,0.05463845]
[1646770594429,4.4026,2579.8,2579.5,0.05795814]
[1646770594765,5.7026,2579.8,2579.5,0.05463806]
[1646770595569,2.2026,2579.8,2579.5,0.05795775]
[1646770595766,1.2026,2579.8,2579.5,0.05463806]
[1646770596170,0.9026,2579.8,2579.5,0.05463806]
[1646770596974,0.9026,2579.8,2579.5,0.05466136]
[1646770598074,7.12558735,2580.1,2579.5,0.0546741]
[1646770598271,4.17876715,2580.1,2579.5,0.0546741]
[1646770599131,3.5,2580.0,2579.7,0.00335563]
[1646770599331,4.46977,2580.0,2579.7,0.03195573]
[1646770600132,3.0,2579.9,2579.7,0.03195573]
[1646770600330,3.0,2579.9,2579.7,0.03530881]
[1646770600331,3.5,2579.8,2579.7,0.03530881]
[1646770600531,3.5,2579.8,2579.7,0.03195318]
[1646770600737,3.8,2579.8,2579.7,0.03195318]
[1646770601135,1.26988,2579.8,2579.7,0.03195318]
[1646770601736,4.5,2579.7,2579.6,0.00334725]
[1646770601937,8.86167827,2579.7,2579.6,0.00334725]
[1646770602136,4.36167827,2579.7,2579.6,0.00334725]
[1646770602370,1.56988,2579.8,2579.6,0.00334725]
[1646770602371,0.3,2579.8,2579.6,0.00334725]
[1646770602571,6.18769514,2580.1,2579.6,0.00334725]
[1646770602976,6.18769514,2580.1,2579.5,0.00334731]
[1646770603174,6.0793,2580.1,2579.5,0.00334731]
[1646770603396,2.3946,2580.1,2579.5,0.00334731]
[1646770603775,0.80305659,2580.5,2579.5,0.00334731]
[1646770604175,0.80305659,2580.5,2579.7,0.00334765]
[1646770604378,0.80305659,2580.5,2579.7,0.03194775]
[1646770605378,0.80305659,2580.5,2580.0,0.00335177]
[1646770605778,0.3,2580.6,2580.0,0.00335177]
[1646770606032,5.2222,2580.7,2580.0,0.00335177]
[1646770606223,3.1269,2580.7,2580.0,0.00335177]
[1646770606423,3.1269,2580.7,2580.1,0.00335167]
[1646770606424,2.8269,2580.7,2580.1,0.00335167]
[1646770606628,1.1852,2580.8,2580.1,0.00335167]
[1646770606824,4.046,2580.8,2580.1,0.00335167]
[1646770607026,0.3,2580.9,2580.1,0.00335167]
[1646770607225,3.43265895,2581.0,2580.1,0.00335167]
[1646770607428,6.00457029,2581.0,2580.1,0.00335167]
[1646770607627,2.7327,2580.9,2580.1,0.00335167]
[1646770607826,2.7327,2580.9,2580.3,0.00335133]
[1646770608028,4.46947,2580.8,2580.3,0.00335133]
[1646770608227,0.96947,2580.8,2580.3,0.00335133]
[1646770608428,1.96947,2580.8,2580.3,0.00335133]
[1646770608632,0.82637742,2580.6,2580.3,0.00335133]
[1646770608829,0.82637742,2580.6,2580.4,0.00335093]
[1646770609228,0.856496,2580.6,2580.4,0.00335093]
[1646770609629,0.03011858,2580.6,2580.4,0.00335093]
[1646770610074,0.03011858,2580.6,2580.4,0.00670189]
[1646770610273,0.03011858,2580.6,2580.4,0.00335096]
[1646770611280,0.03011858,2580.6,2580.4,0.00335098]
[1646770612380,0.03011858,2580.6,2580.4,0.00670199]
[1646770612581,0.03011858,2580.6,2580.4,0.00335101]
[1646770613618,0.03011858,2580.6,2580.4,0.00670202]
[1646770613820,0.03011858,2580.6,2580.4,0.00335101]
[1646770614817,0.03011858,2580.6,2580.4,0.00335099]
[1646770616122,0.64907041,2580.5,2580.4,0.00335099]
[1646770616428,4.14907041,2580.5,2580.4,0.00335099]
[1646770616626,5.11863041,2580.5,2580.4,0.00335099]
[1646770616824,0.96956,2580.5,2580.4,0.00335099]
[1646770617025,0.03011858,2580.6,2580.4,0.00335099]
[1646770617568,0.03011858,2580.6,2580.3,0.00335103]
[1646770618568,0.03011858,2580.6,2580.3,0.00335102]
[1646770619370,0.99965858,2580.6,2580.3,0.00335102]
[1646770619571,0.03011858,2580.6,2580.3,0.00335102]
[1646770619770,0.03011858,2580.6,2580.0,1.58546513]
[1646770620171,0.03011858,2580.6,2580.1,1.58546513]
[1646770620371,0.03011858,2580.6,2579.3,0.69950667]
[1646770620372,0.3878,2580.5,2579.3,0.69950667]
[1646770620571,2.3273972,2580.3,2579.3,0.69811928]
[1646770620772,2.3273972,2580.3,2579.4,1.58557034]
[1646770620773,3.5,2580.2,2579.4,1.58557034]
[1646770621033,2.4978972,2580.3,2579.5,1.58557034]
[1646770621229,2.4978972,2580.3,2579.6,1.58557034]
[1646770621230,1.8281,2580.3,2579.6,1.58557034]
[1646770621430,0.03011858,2580.6,2579.7,1.58557034]
[1646770621632,0.03011858,2580.6,2579.8,1.58557034]
[1646770621829,0.03011858,2580.6,2579.9,1.58557034]
[1646770622030,0.03011858,2580.6,2580.0,1.58557034]
[1646770622229,0.03011858,2580.6,2580.2,0.91440891]
[1646770623030,0.03011858,2580.6,2579.8,0.00364398]
[1646770623434,0.03011858,2580.6,2580.3,0.0038177]
[1646770623634,0.99965858,2580.6,2580.3,0.0038177]
[1646770623934,0.71928095,2580.5,2580.3,0.0038177]
[1646770624534,3.5,2580.4,2580.3,0.0038177]
[1646770624771,9.43951,2580.4,2580.3,0.00381766]
[1646770624969,20.76089803,2580.4,2580.3,0.00381766]
[1646770625170,21.76089803,2580.4,2580.3,0.00381766]
[1646770625970,7.93067803,2580.4,2580.2,0.00381774]
[1646770626173,1.3,2580.4,2580.2,0.00381774]
[1646770626374,2.28903095,2580.5,2580.2,0.00381774]
[1646770626677,2.01928095,2580.5,2580.2,0.00381774]
[1646770627073,1.2352,2580.6,2580.2,0.00710291]
[1646770627274,1.2352,2580.6,2580.2,0.00328517]
[1646770628173,1.2352,2580.6,2580.3,0.0032851]
[1646770628375,1.2352,2580.6,2580.3,0.00230252]
[1646770628620,0.3,2580.8,2580.3,0.00230252]
[1646770628919,3.19752866,2580.9,2580.3,0.04020382]
[1646770629519,3.19752866,2580.9,2580.3,0.0379013]
[1646770630427,16.26956,2580.8,2580.3,0.0379013]
[1646770630626,0.96971,2580.6,2580.5,0.00336506]
[1646770630826,4.46971,2580.6,2580.5,0.00336506]
[1646770631027,5.5,2580.5,2580.3,0.0379013]
[1646770631226,3.5,2580.4,2580.3,0.0379013]
[1646770631625,3.968,2580.4,2580.3,0.0379013]
[1646770632271,4.968,2580.4,2580.3,0.0379013]
[1646770633071,16.768,2580.4,2580.3,0.0193013]
[1646770633275,16.768,2580.4,2579.2,0.00138739]
[1646770633276,17.6878,2580.3,2579.2,0.00138739]
[1646770633476,0.96999,2579.8,2579.2,0.00138739]
[1646770633683,3.5,2579.7,2579.2,1.58713643]
[1646770633876,3.5,2579.7,2579.3,1.58574904]
[1646770634076,3.5,2579.7,2579.4,1.58574904]
[1646770634275,3.5,2579.7,2579.6,0.00392435]
[1646770634479,4.4699806,2579.7,2579.6,0.00392435]
[1646770635477,4.4699806,2579.7,2579.5,0.00392442]
[1646770635678,0.9699806,2579.7,2579.5,0.00392442]
[1646770635879,2.15360036,2579.8,2579.5,0.00392442]
[1646770636126,1.96999,2579.8,2579.5,0.00392442]
[1646770636328,1.3,2579.9,2579.5,0.00392442]
[1646770636725,0.3,2579.9,2579.5,0.00784884]
[1646770636926,0.3,2579.9,2579.5,0.00392442]
[1646770637131,5.76974,2580.0,2579.5,0.00392442]
[1646770637132,0.77054854,2579.8,2579.5,0.00392442]
[1646770637626,0.96987,2579.7,2579.5,0.00392442]
[1646770638027,0.96987,2579.7,2579.6,0.00392439]
[1646770639227,0.96987,2579.7,2579.5,0.0032905]
[1646770639428,0.02815556,2579.7,2579.6,0.0292904]
[1646770640273,0.02815556,2579.7,2579.6,1.61500776]
[1646770640874,0.02815556,2579.7,2579.6,0.0292904]
[1646770642078,0.71051446,2579.7,2579.6,0.0292904]
[1646770642281,5.18042446,2579.7,2579.6,0.0292904]
[1646770642479,17.3,2579.6,2579.1,0.01316396]
[1646770642681,14.8,2579.4,2579.1,0.01316396]
[1646770642880,3.968,2579.3,2579.1,0.01345692]
[1646770643079,3.5,2579.2,2579.1,0.01345692]
[1646770643280,4.5,2579.2,2579.1,0.01345692]
[1646770643534,5.38331588,2579.2,2579.1,0.01345692]
[1646770643723,0.97037,2578.8,2578.4,0.00138739]
[1646770643924,3.5,2578.9,2578.8,0.72159967]
[1646770644124,5.9384,2579.1,2578.8,0.72159967]
[1646770644324,2.7384,2579.1,2578.8,0.72159967]
[1646770644524,1.768,2579.1,2578.8,0.72159967]
[1646770644724,1.94073,2578.9,2578.8,0.72159967]
[1646770644928,1.94073,2578.9,2578.8,2.30779094]
[1646770645326,2.70858,2579.1,2578.8,2.30779094]
[1646770645327,0.3,2579.0,2578.8,2.30779094]
[1646770645527,0.3,2579.0,2578.9,1.58616672]
[1646770645726,1.43835,2579.1,2578.9,1.58616672]
[1646770645928,0.97001,2579.4,2578.9,1.58616672]
[1646770646131,1.27001,2579.4,2578.9,1.58616672]
[1646770646331,0.97001,2579.4,2578.9,1.58616672]
[1646770646534,0.00392393,2579.5,2578.9,1.58616672]
[1646770647035,0.30392393,2579.5,2578.9,1.58616672]
[1646770647674,0.00392411,2579.5,2579.0,0.00392494]
[1646770649076,0.00392415,2579.5,2579.0,0.00392497]
[1646770649777,0.02830811,2579.3,2579.0,0.00392497]
[1646770649980,0.02830811,2579.3,2579.0,0.00754092]
[1646770650176,0.02830811,2579.3,2579.0,0.00361595]
[1646770651227,0.02830811,2579.3,2579.0,0.00691516]
[1646770651429,0.02830811,2579.3,2579.0,0.00329921]
[1646770653531,0.02830811,2579.3,2579.0,0.00661147]
[1646770653731,0.02830811,2579.3,2579.0,0.00331226]
[1646770654779,0.02830811,2579.3,2579.0,0.00665594]
[1646770654979,0.02830811,2579.3,2579.0,0.00334368]
[1646770656484,0.02830811,2579.3,2579.0,1.5893863]
[1646770656684,0.02830811,2579.3,2579.0,0.00334368]
[1646770657285,0.02830811,2579.3,2579.0,0.00335633]
[1646770658386,0.02830811,2579.3,2579.0,0.00670982]
[1646770658625,0.02830811,2579.3,2579.0,0.00335349]
[1646770659526,0.02830811,2579.3,2579.0,0.00670698]
[1646770659726,0.02830811,2579.3,2579.0,0.00335349]
[1646770660925,0.02830811,2579.3,2579.0,0.00335622]
[1646770661130,0.97006,2579.2,2579.0,0.00335622]
[1646770662129,1.7668894,2579.2,2579.0,0.00671218]
[1646770662379,0.97006,2579.2,2579.0,0.00335596]
[1646770663183,4.27006,2579.2,2579.0,0.00335596]
[1646770663379,1.94062,2579.1,2579.0,0.00335596]
[1646770664581,2.85829373,2579.1,2579.0,0.00335596]
[1646770664782,3.85829373,2579.1,2578.9,0.00335585]
[1646770665181,2.94062,2579.1,2578.9,0.00335585]
[1646770665686,1.94062,2579.1,2578.9,0.00671169]
[1646770665883,2.94062,2579.1,2578.9,0.00335584]
[1646770666136,0.02830811,2579.3,2578.9,0.00335584]
[1646770666337,0.02830811,2579.3,2578.9,1.5893611]
[1646770666535,0.02830811,2579.3,2578.9,2.30590647]
[1646770666735,0.02830811,2579.3,2578.9,0.71990121]
[1646770666937,0.02830811,2579.3,2578.9,0.00335584]
[1646770667136,0.07929768,2579.2,2578.9,0.00335584]
[1646770667338,0.07929768,2579.2,2578.9,5.0604501]
[1646770667537,0.07929768,2579.2,2579.0,1.55709426]
[1646770667739,0.07929768,2579.2,2579.1,0.3878]
[1646770668041,0.07929768,2579.2,2578.9,3.50335584]
[1646770668241,0.07929768,2579.2,2579.1,0.68558587]
[1646770668438,0.07929768,2579.2,2579.1,2.24304731]
[1646770668638,0.07929768,2579.2,2578.9,0.00335582]
[1646770669041,0.07929768,2579.2,2578.8,2.27908584]
[1646770669239,0.07929768,2579.2,2578.9,1.55748617]
[1646770669440,0.02819137,2579.1,2578.9,1.55748617]
[1646770670076,0.07930088,2579.0,2578.9,1.55748617]
[1646770670275,0.02819137,2579.1,2578.9,1.55748617]
[1646770670475,0.07930106,2579.0,2578.9,1.55748617]
[1646770670676,0.02819137,2579.1,2578.9,1.55748617]
[1646770670882,0.07930112,2579.0,2578.9,1.55748617]
[1646770671079,0.02819137,2579.1,2578.9,1.55748617]
[1646770671280,0.07930102,2579.0,2578.9,1.55748617]
[1646770671480,0.02819137,2579.1,2579.0,0.1577727]
[1646770671682,0.10749436,2579.1,2579.0,0.1577727]
[1646770675027,0.10749436,2579.1,2578.9,0.05100111]
[1646770675028,4.00106158,2579.0,2578.9,0.05100111]
[1646770675227,18.55999922,2579.0,2578.9,1.11e-06]
[1646770675426,18.55999922,2579.0,2578.9,0.00381388]
[1646770675627,3.59449922,2579.0,2578.9,0.00381388]
[1646770676531,2.75999922,2579.0,2578.9,0.00381388]
[1646770676733,2.75999922,2579.0,2578.8,0.72159967]
[1646770676734,1.75999922,2579.0,2578.8,0.72159967]
[1646770676934,0.07930299,2578.9,2578.8,0.72159967]
[1646770677776,0.07930299,2578.9,2578.8,0.72331576]
[1646770678977,0.07930299,2578.9,2578.8,0.72159967]
[1646770680782,0.07930299,2578.9,2578.7,0.00359604]
[1646770680783,5.5,2578.8,2578.7,0.00359604]
[1646770681039,6.28860764,2578.8,2578.7,0.00359604]
[1646770681235,7.58860764,2578.8,2578.7,0.00359604]
[1646770681438,7.58860764,2578.8,2578.7,0.00351306]
[1646770681637,11.8,2578.6,2578.2,0.01405491]
[1646770681934,13.37223741,2578.3,2578.2,0.01405491]
[1646770682135,5.5,2578.2,2577.6,0.0013816]
[1646770682333,12.34730299,2578.1,2577.2,0.0013816]
[1646770682533,0.07930299,2578.0,2577.0,1.54356854]
[1646770682737,0.79025237,2578.0,2577.0,1.54356854]
[1646770682933,1.09025237,2578.0,2577.0,2.22159283]
[1646770683135,0.97078,2577.7,2577.2,0.3878]
[1646770683434,1.7388,2578.1,2577.0,0.67940589]
[1646770683435,0.07930299,2577.6,2577.3,5.04218694]
[1646770683733,0.07930299,2577.6,2577.0,0.67802429]
[1646770683734,0.71094938,2578.2,2577.4,1.54218694]
[1646770684049,0.07933541,2578.1,2577.5,1.54218694]
[1646770684241,0.07933541,2578.0,2577.6,1.54218694]
[1646770684435,0.07933541,2577.9,2577.1,3.8891816]
[1646770684635,0.07933541,2577.8,2577.2,1.50545274]
[1646770684881,1.09874938,2578.4,2577.2,1.50545274]
[1646770684882,1.94116,2578.2,2577.2,1.50407114]
[1646770685083,0.07933844,2578.1,2577.7,0.00390285]
[1646770686286,7.0133016,2578.5,2577.8,0.00390277]
[1646770686287,0.07933844,2578.0,2577.8,0.00390277]
[1646770686488,0.07933844,2577.9,2577.8,0.00390277]
[1646770686692,0.07933844,2578.4,2577.8,0.00390277]
[1646770687588,0.07933844,2578.4,2577.7,3.50390281]
[1646770687787,0.07933844,2578.4,2577.7,0.00390281]
[1646770687989,0.07933844,2578.3,2577.7,0.00390281]
[1646770688187,0.07933844,2578.2,2577.7,4.91485747]
[1646770688387,0.00390164,2578.5,2577.7,0.00390281]
[1646770688629,0.00749414,2578.5,2577.9,0.0035933]
[1646770688828,0.00749414,2578.5,2577.9,0.01410492]
[1646770688829,0.02407579,2578.1,2577.9,0.01410492]
[1646770689029,0.02407579,2578.1,2577.9,0.0389539]
[1646770689828,0.02407579,2578.1,2577.9,0.04224409]
[1646770690031,0.02407579,2578.1,2577.9,0.03865079]
[1646770690230,0.1535216,2578.0,2577.9,0.03865079]
[1646770691237,0.1535216,2578.0,2577.4,0.01316304]
[1646770691238,17.3,2577.9,2577.8,0.00329023]
[1646770691436,11.8,2577.7,2577.4,0.00995052]
[1646770691635,11.8,2577.5,2577.4,0.00995052]
[1646770691842,11.8,2577.3,2576.5,0.0013816]
[1646770692035,0.1535216,2577.2,2576.4,1.40985922]
[1646770692285,0.1535216,2577.2,2576.5,1.40985922]
[1646770692487,1.6706,2577.6,2576.6,1.40985922]
[1646770692685,0.1535807,2577.5,2576.6,4.90985922]
[1646770692886,0.1535807,2577.5,2576.6,3.5]
[1646770693285,0.1535807,2577.5,2576.8,0.3878]
[1646770693484,0.1535807,2577.5,2576.9,3.5]
[1646770693685,0.1535807,2577.5,2577.3,0.90812549]
[1646770693986,1.22537579,2578.1,2577.3,0.90812549]
[1646770694187,1.22537579,2578.1,2577.9,0.0047687]
[1646770694188,0.15326651,2578.0,2577.9,0.0047687]
[1646770694393,0.15326651,2578.0,2577.9,0.0353606]
[1646770695586,1.02461297,2578.0,2577.9,0.0353606]
[1646770695787,2.09455651,2578.0,2577.9,6.06e-05]
[1646770696044,14.19455651,2578.0,2577.9,6.06e-05]
[1646770696434,15.19455651,2578.0,2577.9,6.06e-05]
[1646770696633,1.45326651,2578.0,2577.9,6.06e-05]
[1646770696836,1.12387651,2578.0,2577.9,6.06e-05]
[1646770697235,0.15326651,2578.0,2577.9,6.06e-05]
[1646770699777,0.97073,2577.8,2577.3,0.00365511]
[1646770699980,1.64463894,2577.8,2577.3,0.00365511]
[1646770700579,0.97073,2577.8,2577.3,0.00365511]
[1646770700780,0.00327485,2577.7,2577.3,0.00693048]
[1646770700981,0.00327485,2577.7,2577.3,0.00327537]
[1646770702088,0.00327482,2577.7,2577.3,0.00327534]
[1646770703086,0.00654964,2577.7,2577.3,0.00655068]
[1646770703286,0.00327482,2577.7,2577.3,0.00327534]
[1646770704332,0.00663868,2577.7,2577.3,0.00663973]
[1646770704532,0.00336386,2577.7,2577.3,0.00336439]
[1646770705932,0.00336386,2577.7,2577.3,0.97380439]
[1646770706737,0.00336386,2577.7,2577.3,0.00336439]
[1646770707983,0.0033252,2577.7,2577.3,0.39112573]
[1646770708183,0.0033252,2577.7,2577.4,0.3878]
[1646770708583,0.0033252,2577.7,2577.6,0.3878]
[1646770708782,0.0033252,2577.7,2577.6,0.8558]
[1646770708986,0.0033252,2577.7,2577.6,2.03794212]
[1646770709183,0.0033252,2577.7,2577.6,3.44487278]
[1646770709385,0.00332524,2577.7,2577.6,3.44487278]
[1646770709584,0.00332524,2577.7,2577.6,4.44487278]
[1646770710184,0.3879,2578.9,2577.8,12.1878]
[1646770710388,0.71201096,2579.0,2578.0,13.15772]
[1646770710389,0.1532753,2578.8,2578.0,13.15772]
[1646770710585,0.1532753,2578.7,2578.1,12.6558]
[1646770710785,0.00106158,2579.0,2578.3,15.1878]
[1646770711042,0.00106158,2579.0,2578.5,12.1878]
[1646770711234,0.00106158,2579.0,2578.7,13.157358]
[1646770711434,0.00106158,2579.0,2578.7,13.625358]
[1646770711635,0.00106158,2579.0,2578.7,14.925358]
[1646770712034,0.00106158,2579.0,2578.8,0.96956]
[1646770712233,0.00106158,2579.0,2578.8,13.62536]
[1646770712433,0.00106158,2579.0,2578.8,1.82536]
[1646770712636,0.00269537,2579.0,2578.8,2.82536]
[1646770712833,0.00269537,2579.0,2578.8,1.82536]
[1646770713037,0.00269537,2579.0,2578.8,4.76446]
[1646770713236,0.00269537,2579.0,2578.9,12.1878]
[1646770713434,0.00269537,2579.0,2578.9,12.6558]
[1646770713637,0.00269537,2579.0,2578.9,15.89465]
[1646770713936,0.00432916,2579.0,2578.9,15.89465]
[1646770714135,0.00269537,2579.0,2578.9,15.89465]
[1646770714790,0.14433173,2579.9,2578.9,15.89465]
[1646770714991,0.14433173,2579.9,2579.7,0.9694]
[1646770715195,0.14433173,2579.9,2578.9,0.3]
[1646770715490,3.64433173,2579.9,2578.9,0.3]
[1646770715692,0.14433173,2579.8,2578.6,0.468]
[1646770715891,0.14433173,2579.8,2578.7,1.41787752]
[1646770716092,0.14433173,2579.8,2579.1,0.7616754]
[1646770717896,0.14433173,2579.8,2579.3,0.3878]
[1646770718094,0.14433173,2579.8,2579.3,2.32663]
[1646770718295,0.14433173,2579.7,2579.4,0.3878]
[1646770718542,0.14433173,2579.6,2579.4,4.85722]
[1646770718731,0.14433173,2579.5,2579.4,1.26942]
[1646770718931,0.00190807,2579.7,2579.4,1.26942]
[1646770719331,0.1462398,2579.7,2579.4,1.26942]
[1646770719631,0.14433173,2579.6,2579.4,1.26942]
[1646770719831,0.14433173,2579.6,2579.5,0.3878]
[1646770720031,0.14433173,2579.6,2579.4,2.2388062]
[1646770720235,0.14433173,2579.6,2579.4,0.96942]
[1646770720433,0.14433173,2579.6,2579.1,0.7616754]
[1646770721339,0.14823671,2579.6,2579.1,0.7616754]
[1646770721538,0.14433173,2579.5,2579.1,0.7616754]
[1646770721739,0.14433173,2579.5,2579.1,1.0616754]
[1646770721939,0.14433173,2579.5,2579.1,2.0313254]
[1646770722382,0.14823683,2579.5,2579.1,1.7313254]
[1646770722585,0.14433173,2579.4,2579.1,1.7313254]
[1646770723586,0.14774221,2579.4,2579.1,1.7313254]
[1646770723790,0.00341048,2579.4,2579.2,0.3]
[1646770724588,0.00341048,2579.4,2579.3,12.1878]
[1646770724788,0.00650609,2579.4,2579.3,17.1558]
[1646770724989,0.00309561,2579.4,2579.3,17.1558]